[Event "Austrian Championship 2022"]
[Site "Vienna"]
[Date "2022.08.16"]
[Round "6.19"]
[White "Sandhoefner, Florian"]
[Black "Sucher, Johannes"]
[Result "1-0"]
[ECO "B01"]
[WhiteElo "2289"]
[BlackElo "2164"]
[Annotator "NA RC"]
[PlyCount "77"]
[EventDate "2022.08.12"]
[EventType "swiss"]
[EventCountry "AUT"]
[SourceTitle "playchess.com"]
[Source "ChessBase"]
[SourceQuality "1"]
[TimeControl "40/5400+30:1800+30"]

1. e4 {[%emt 0:00:02]} d5 {[%emt 0:01:43]} 2. exd5 {[%emt 0:00:22]} Nf6 {[%emt 0:00:11]} 3. d4 {[%emt 0:00:06]} Bg4 {[%emt 0:00:18]} 4. f3 {[%emt 0:00:07]} Bf5 {[%emt 0:00:14]} 5. Bb5+ {[%emt 0:00:11]} c6 {[%emt 0:04:18]} 6. dxc6 {[%emt 0:00:48]} Nxc6 {[%emt 0:00:26]} 7. Ne2 {[%emt 0:01:53]} Qb6 {[%emt 0:01:29]} 8. Bxc6+ {[%emt 0:07:07]} bxc6 {[%emt 0:00:55]} 9. c3 {[%emt 0:00:12]} e6 {[%emt 0:02:02]} 10. Qb3 {[%emt 0:02:16]} Qa6 {[%emt 0:00:41]} 11. Kf2 {[%emt 0:00:48]} Bd6 {[%emt 0:03:00]} 12. Nd2 {[%emt 0:04:53]} O-O {[%emt 0:05:34]} 13. Ng3 {[%emt 0:02:58]} ({Don't go for} 13. Nc4 $2 Rab8 14. Be3 Bc7 $19) 13... Bg6 {[%emt 0:04:41]} 14. Qc4 {[%emt 0:06:36]} Qb6 $14 {[%emt 0:08:26]} 15. Nde4 {[%emt 0:05:27]} Nxe4+ {[%emt 0:08:02]} 16. Nxe4 {[%emt 0:00:26]} Bc7 {[%emt 0:00:57]} 17. b3 {[%emt 0:02:42]} e5 {[%emt 0:01:23]} 18. Be3 {[%emt 0:00:31]} exd4 {[%emt 0:10:40]} 19. Bxd4 {[%emt 0:01:27]} Qb8 {[%emt 0:00:32]} 20. g3 {[%emt 0:01:14]} Qc8 {[%emt 0:02:46]} 21. Kg2 {[%emt 0:02:33]} Bf5 {[%emt 0:13:06]} 22. Qxc6 {[%emt 0:04:08]} Bh3+ {[%emt 0:00:32]} 23. Kg1 {[%emt 0:00:02]} Qf5 {[%emt 0:09:00]} 24. Nf2 {[%emt 0:02:33]} Rac8 {[%emt 0:06:12]} 25. g4 {[%emt 0:06:57]} Qf4 {[%emt 0:02:10]} 26. Nxh3 {[%emt 0:05:47]} Qd2 {[%emt 0:07:12]} 27. Qa6 {[%emt 0:02:41]} Rfe8 {[%emt 0:01:58]} 28. Nf2 {[%emt 0:01:46]} Rcd8 {[%emt 0:02:08]} 29. Qd3 {[%emt 0:05:14]} Qb2 {[%emt 0:00:11]} 30. Qb1 {[%emt 0:02:02]} Qd2 {[%emt 0:00:53]} 31. Qc1 {[%emt 0:00:45]} Qe2 {[%emt 0:01:09]} 32. Kg2 {[%emt 0:00:39]} Qe7 {[%emt 0:02:57]} 33. Qd2 {[%emt 0:01:41]} Qh4 {[%emt 0:00:22]} 34. Rae1 {[%emt 0:00:58]} Be5 {[%emt 0:00:35]} 35. Re4 {[%emt 0:01:59]} f6 {[%emt 0:00:43]} 36. f4 {[%emt 0:01:06]} Qh6 {[%emt 0:00:16]} 37. Rhe1 {[%emt 0:01:44]} Kf7 {[%emt 0:00:27]} 38. g5 {[%emt 0:00:30]} Bxf4 {[%emt 0:00:47]} 39. Qxf4 {[%emt 0:00:26]} 1-0

[Event "Austrian Championship 2022"]
[Site "Vienna"]
[Date "2022.08.16"]
[Round "6.20"]
[White "Leitner, Gerald"]
[Black "Hechl, Gerald"]
[Result "1-0"]
[ECO "B06"]
[WhiteElo "2145"]
[BlackElo "2222"]
[Annotator "TA"]
[PlyCount "97"]
[EventDate "2022.08.12"]
[EventType "swiss"]
[EventCountry "AUT"]
[SourceTitle "playchess.com"]
[Source "ChessBase"]
[SourceQuality "1"]
[TimeControl "40/5400+30:1800+30"]

{[%evp 9,97,69,66,10,16,0,20,-12,25,20,54,-16,-41,-32,-23,-29,-24,-39,23,-33,-23,-41,-41,-46,-25,-43,25,20,114,-70,-44,-54,384,-78,-75,-68,-72,-62,0,0,0,-85,-59,-84,-73,-97,-32,-95,-101,-94,-111,-341,-307,-370,-364,-535,-300,-797,-796,-740,1250,1234,1406,1299,1293,936,1426,855,1312,508,419,164,164,145,320,336,1117,671,12841,12834,5537,4599,1178,717,622,609,29984,29970,5222,4897]} 1. e4 {[%emt 0:00:03]} g6 {[%emt 0:00:17]} 2. d4 {[%emt 0:00:03]} Nf6 {[%emt 0:00:04]} 3. Nc3 {[%emt 0:01:19]} d5 {[%emt 0:00:05]} 4. e5 {[%emt 0:00:51]} Ne4 {[%emt 0:00:05]} 5. Nxe4 {[%emt 0:00:43]} dxe4 {[%emt 0:00:06]} 6. Bf4 {[%emt 0:03:06] B06: Modern Defence.} (6. f4 $14) 6... Bg7 $11 {[%emt 0:03:19]} 7. Qd2 {[%emt 0:11:07]} c5 {[%emt 0:10:41]} 8. d5 {[%emt 0:07:57] [#] The position is equal.} Qb6 $146 {[%emt 0:01:45]} ({Predecessor:} 8... O-O 9. O-O-O Qb6 10. Qe3 Bg4 11. f3 exf3 12. Nxf3 Nd7 13. h3 Bxf3 14. gxf3 c4 {1-0 (45) Harsha,B (2489)-Potapova,M (2257) Chess.com INT 2021}) 9. O-O-O {[%emt 0:19:10]} Nd7 {[%emt 0:09:27]} 10. Ne2 {[%emt 0:00:40]} ({White should play} 10. Qc3 $14) 10... Nxe5 {[%emt 0:01:48]} 11. Nc3 {[%emt 0:00:02]} O-O $36 {[%emt 0:00:37][%mdl 2048] Black has some pressure.} 12. Re1 {[%emt 0:04:04]} Ng4 {[%emt 0:12:53]} 13. Rxe4 {[%emt 0:05:50]} e5 {[%emt 0:01:33]} (13... e6 $15) 14. Bg3 {[%emt 0:07:33]} (14. Bg5 $11) 14... f5 {[%emt 0:02:41]} (14... Bh6 $5 15. f4 f5 $11) 15. Re1 {[%emt 0:00:34]} Bh6 $1 {[%emt 0:21:47]} 16. f4 {[%emt 0:00:02]} e4 {[%emt 0:00:08]} 17. h3 {[%emt 0:09:55]} Ne5 {[%emt 0:00:28]} (17... Nf6 $15) 18. Bh4 {[%emt 0:00:51]} Re8 {[%emt 0:00:43]} (18... Qb4 $11) 19. Bb5 $2 {[%emt 0:03:46] [#]} ({White should try} 19. d6 $16) 19... Qd6 {[%emt 0:02:42][%cal Oh6f4]} 20. Kb1 {[%emt 0:04:48]} (20. Bxe8 Bxf4 $1 {[%mdl 512]} 21. Qxf4 (21. Re3 $2 Nc4 $19) 21... Nd3+ $1 {[%mdl 512]} 22. cxd3 Qxf4+ 23. Kb1 Qxh4 24. dxe4 fxe4 $17) (20. Rhf1 Bd7) 20... Bd7 {[%emt 0:02:06][%mdl 8192]} (20... Nd7 $1 $15 {keeps the upper hand.} 21. Rhf1 a6 22. Bxd7 Bxd7) 21. Qf2 $2 {[%emt 0:09:28]} (21. fxe5 $18 Bxd2 22. exd6 Bxe1 23. Rxe1 Bxb5 24. Nxb5) 21... Nf7 $17 {[%emt 0:01:21]} 22. Bxd7 {[%emt 0:00:03]} Qxd7 {[%emt 0:00:02]} 23. g4 {[%emt 0:00:21]} Nd6 {[%emt 0:06:51]} (23... Bg7 $1 $15) 24. Bf6 $11 {[%emt 0:00:53]} Nc4 {[%emt 0:04:20] Strongly threatening ...e3.} 25. Qxc5 {[%emt 0:02:58]} (25. g5 $11 {keeps the balance.} Bg7 26. h4 (26. Qxc5 Nd2+ 27. Ka1 Bxf6 $11)) 25... Rac8 $17 {[%emt 0:01:05]} 26. Qd4 {[%emt 0:01:20]} Bxf4 {[%emt 0:00:31] Hoping for ...Bd2.} 27. Re2 {[%emt 0:00:42] Inhibits Bd2.} Nd6 {[%emt 0:06:19]} (27... b5 $1 $17 {[%cal Oc4d2] Threatens to win with ...Nd2+!} 28. gxf5 Qxf5) 28. Rf1 {[%emt 0:00:36] [#]} (28. Qd1 $15) 28... Bh6 $1 {[%emt 0:02:53]} 29. gxf5 {[%emt 0:00:23]} Nxf5 {[%emt 0:00:08][%cal Bd6f5,Bf5g3,Bg3e2][%mdl 32]} 30. Qxa7 {[%emt 0:04:18]} (30. Rxf5 $17 Qxf5 31. Re1) 30... Ng3 $1 $19 {[%emt 0:00:25][%csl LRe2,LRf1,LRh3][%mdl 64] Discovered Attack, Double Attack} 31. Rfe1 {[%emt 0:00:40]} Nxe2 {[%emt 0:00:13]} 32. Rxe2 {[%emt 0:00:30]} (32. Nxe2 {was the only chance.} Qxd5 33. Qa4) 32... Qxh3 {[%emt 0:01:39] ( -> ...Qf1+)} 33. a3 $2 {[%emt 0:00:36]} (33. Re1 Qg3 34. Qg1 Qxg1 35. Rxg1) 33... Qf1+ {[%emt 0:00:14]} 34. Ka2 {[%emt 0:02:18]} Qxe2 $4 {[%emt 0:00:48][%mdl 8192]} 35. Nxe2 $18 {[%emt 0:00:00]} Rxc2 {[%emt 0:01:06]} 36. Nc3 {[%emt 0:00:00] Black must now prevent Qa4.} e3 {[%emt 0:00:54]} 37. d6 {[%emt 0:00:00] White threatens d7 and mate.} Rd2 {[%emt 0:00:57]} 38. Be7 {[%emt 0:00:00] aiming for Qa4.} e2 {[%emt 0:01:18] [#]} 39. Nxe2 $1 {[%emt 0:00:00][%mdl 512]} Bg7 {[%emt 0:00:03] [#]} 40. Kb1 {[%emt 0:02:15]} Rxb2+ {[%emt 0:04:04]} (40... Rxe2 $2 41. d7 Re1+ 42. Ka2 R1xe7 43. dxe8=Q+ Rxe8 44. Qxb7 $18) 41. Kc1 {[%emt 0:30:01]} Rc8+ $2 {[%emt 0:30:45]} (41... Rxe2 $16 {was worth a try.} 42. Qxb7 h5) 42. Kd1 {[%emt 0:00:13]} Rcc2 $2 {[%emt 0:00:00] [#]} (42... Bh6 43. Ke1 Rcc2) 43. Qa5 $1 {[%emt 0:00:00]} Bh6 {[%emt 0:00:00]} (43... Rd2+ 44. Qxd2) 44. Qd5+ {[%emt 0:00:00]} Kg7 {[%emt 0:00:00]} 45. Qe5+ {[%emt 0:00:00]} Kf7 {[%emt 0:00:00]} 46. Qf6+ {[%emt 0:00:00]} Ke8 {[%emt 0:00:00]} 47. Qh8+ {[%emt 0:00:00]} Kd7 {[%emt 0:00:00]} 48. Qd8+ {[%emt 0:00:00]} Ke6 {[%emt 0:00:00]} 49. Nd4+ {[%emt 0:00:00] White used his chance.  Weighted Error Value: White=1.01/Black=0.63} 1-0

[Event "Austrian Championship 2022"]
[Site "Vienna"]
[Date "2022.08.16"]
[Round "6.21"]
[White "Dotzer, Lukas"]
[Black "Belke, Frank"]
[Result "0-1"]
[ECO "C06"]
[WhiteElo "2269"]
[BlackElo "2226"]
[Annotator "NA RC"]
[PlyCount "84"]
[EventDate "2022.08.12"]
[EventType "swiss"]
[EventCountry "AUT"]
[SourceTitle "playchess.com"]
[Source "ChessBase"]
[SourceQuality "1"]
[TimeControl "40/5400+30:1800+30"]

1. e4 {[%emt 0:00:02]} e6 {[%emt 0:03:47]} 2. d4 {[%emt 0:00:07]} d5 {[%emt 0:00:11]} 3. Nd2 {[%emt 0:00:07]} Nf6 {[%emt 0:00:15]} 4. e5 {[%emt 0:00:07]} Nfd7 {[%emt 0:00:13]} 5. Bd3 {[%emt 0:00:15]} c5 {[%emt 0:00:06]} 6. c3 {[%emt 0:00:08]} Nc6 {[%emt 0:00:04]} 7. Ne2 $1 {[%emt 0:00:13]} cxd4 {[%emt 0:00:06]} 8. cxd4 {[%emt 0:00:10]} f6 {[%emt 0:00:01]} 9. exf6 {[%emt 0:00:16]} Nxf6 {[%emt 0:00:06]} 10. Nf3 {[%emt 0:00:09]} Bd6 {[%emt 0:00:06]} 11. O-O {[%emt 0:00:30]} Qc7 {[%emt 0:00:06]} 12. Bd2 {[%emt 0:01:10]} O-O {[%emt 0:00:21]} 13. Rc1 {[%emt 0:00:49]} Ng4 {[%emt 0:14:43]} 14. Ng3 {[%emt 0:04:43]} g6 {[%emt 0:06:23] [#]} 15. Ng5 $1 {[%emt 0:12:05]} Nf6 {[%emt 0:08:08]} 16. Re1 {[%emt 0:07:49]} Re8 $14 {[%emt 0:00:11]} 17. Qf3 {[%emt 0:13:01]} Qg7 {[%emt 0:01:07]} 18. Bc3 {[%emt 0:10:11]} h6 {[%emt 0:02:00]} 19. Nh3 {[%emt 0:05:23]} g5 {[%emt 0:00:44]} 20. Nh5 {[%emt 0:01:17]} Nxh5 {[%emt 0:00:08]} 21. Qxh5 {[%emt 0:00:08]} Bd7 {[%emt 0:01:50]} 22. Kh1 {[%emt 0:09:41]} Rf8 {[%emt 0:01:11]} 23. Ng1 {[%emt 0:11:50]} Rf4 {[%emt 0:06:45]} 24. Qd1 {[%emt 0:04:43]} Rxf2 {[%emt 0:08:07]} 25. Nf3 {[%emt 0:01:13]} g4 {[%emt 0:00:19]} 26. Ne5 {[%emt 0:05:15]} Nxe5 {[%emt 0:00:58]} 27. dxe5 {[%emt 0:00:21]} Bc5 {[%emt 0:00:16]} 28. Bd2 {[%emt 0:02:41]} Bb6 {[%emt 0:01:47]} 29. Be3 {[%emt 0:06:17]} Bxe3 {[%emt 0:00:06]} 30. Rxe3 {[%emt 0:00:05]} Bc6 {[%emt 0:00:16]} 31. b4 {[%emt 0:01:12]} Raf8 {[%emt 0:06:31]} 32. b5 {[%emt 0:01:39]} Be8 {[%emt 0:00:09]} 33. Be2 {[%emt 0:02:17]} h5 {[%emt 0:39:59]} 34. Qd4 {[%emt 0:00:58]} Bg6 {[%emt 0:00:00]} 35. Kg1 {[%emt 0:00:35]} Be4 {[%emt 0:00:00]} 36. Bf1 {[%emt 0:00:30]} Qf7 {[%emt 0:00:00]} 37. Ree1 {[%emt 0:00:25]} Rxa2 {[%emt 0:02:00]} 38. Ra1 {[%emt 0:00:35]} Rf2 {[%emt 0:00:00]} 39. Qxa7 {[%emt 0:00:26]} h4 {[%emt 0:00:00]} 40. Qe3 {[%emt 0:00:27]} Qf5 {[%emt 0:00:00]} 41. Qh6 {[%emt 0:06:04]} Rxg2+ {[%emt 0:00:00]} 42. Kh1 {[%emt 0:00:32]} Re2+ {[%emt 0:00:00]} 0-1

[Event "Austrian Championship 2022"]
[Site "Vienna"]
[Date "2022.08.16"]
[Round "6.22"]
[White "Oberhuber, Alexander"]
[Black "Miazhynski, Yuri"]
[Result "1/2-1/2"]
[ECO "A16"]
[WhiteElo "2062"]
[BlackElo "2166"]
[Annotator "TA"]
[PlyCount "46"]
[EventDate "2022.08.12"]
[EventType "swiss"]
[EventCountry "AUT"]
[SourceTitle "playchess.com"]
[Source "ChessBase"]
[SourceQuality "1"]
[TimeControl "40/5400+30:1800+30"]

{[%evp 17,46,0,15,-23,-18,-37,-28,-63,-52,-65,-40,-34,-39,-41,-41,-41,-30,-31,0,-6,-6,-6,-12,0,-6,-6,0,-6,0,0,0]} 1. c4 {[%emt 0:00:02]} Nf6 {[%emt 0:00:17]} 2. g3 {[%emt 0:00:07]} d5 {[%emt 0:01:57]} 3. cxd5 {[%emt 0:00:07]} Nxd5 {[%emt 0:00:06]} 4. Bg2 {[%emt 0:00:13]} g6 {[%emt 0:00:45]} 5. Nc3 {[%emt 0:00:31]} Nb6 {[%emt 0:00:13]} 6. Nf3 {[%emt 0:00:20]} Bg7 {[%emt 0:00:09]} 7. O-O {[%emt 0:00:11]} O-O {[%emt 0:00:05]} 8. d3 {[%emt 0:00:09]} Nc6 {[%emt 0:00:38]} 9. Bd2 {[%emt 0:01:28]} e5 {[%emt 0:00:25]} 10. a4 {[%emt 0:04:21] A16: English Opening: 1...Nf6 with ...d5.} a5 $1 {[%emt 0:07:11] [#]} 11. Nb5 $146 {[%emt 0:02:08]} ({Predecessor:} 11. Bg5 Qd7 12. Ne4 f6 13. Bd2 Kh8 14. Rc1 Nb4 15. Nc5 Qe7 16. Qb3 c6 17. Rfd1 N6d5 {1-0 (41) Nagy,G (2391)-Zsirai,P (2163) Balatonalmadi 2012}) 11... Nb4 {[%emt 0:08:14]} 12. Bc3 {[%emt 0:05:05] Black has an edge.} Qe7 {[%emt 0:09:00]} 13. Nd2 {[%emt 0:02:49]} c6 {[%emt 0:19:17]} 14. Na3 {[%emt 1:19:59]} Be6 {[%emt 0:00:36]} 15. Nac4 {[%emt 0:00:00]} Nxc4 {[%emt 0:09:17]} 16. Nxc4 {[%emt 0:00:00]} Bxc4 {[%emt 0:00:32]} 17. dxc4 {[%emt 0:00:00]} e4 {[%emt 0:00:14] Black wants to play ...Bxc3.} 18. Bxg7 {[%emt 0:00:00] The position is equal.} Kxg7 {[%emt 0:00:01][%cal Bg8g7,Bg7f6,Bf6e5][%mdl 32]} 19. Qd4+ {[%emt 0:00:00]} Qf6 {[%emt 0:01:40]} 20. Qxf6+ {[%emt 0:00:00]} Kxf6 {[%emt 0:00:04]} 21. Bxe4 {[%emt 0:00:00]} Ke5 {[%emt 0:00:27]} 22. Bf3 {[%emt 0:00:00]} Rad8 {[%emt 0:01:10]} 23. Rfd1 {[%emt 0:00:00]} Na6 {[%emt 0:02:33] Weighted Error Value: White=0.09 (flawless) /Black=0.05 (flawless)} 1/2-1/2

[Event "Austrian Championship 2022"]
[Site "Vienna"]
[Date "2022.08.16"]
[Round "6.23"]
[White "Pilshofer, Paul"]
[Black "Scheffknecht, Philipp"]
[Result "1/2-1/2"]
[ECO "A49"]
[WhiteElo "2223"]
[BlackElo "2093"]
[Annotator "NA RC"]
[PlyCount "39"]
[EventDate "2022.08.12"]
[EventType "swiss"]
[EventCountry "AUT"]
[SourceTitle "playchess.com"]
[Source "ChessBase"]
[SourceQuality "1"]
[TimeControl "40/5400+30:1800+30"]

1. d4 {[%emt 0:04:59]} Nf6 {[%emt 0:00:09]} 2. Nf3 {[%emt 0:00:12]} g6 {[%emt 0:00:09]} 3. g3 {[%emt 0:00:03]} Bg7 {[%emt 0:00:06]} 4. Bg2 {[%emt 0:00:06]} d6 {[%emt 0:00:06]} 5. O-O {[%emt 0:00:17]} O-O {[%emt 0:00:06]} 6. b3 {[%emt 0:00:02]} e5 {[%emt 0:10:36]} 7. dxe5 {[%emt 0:15:03]} Ng4 {[%emt 0:05:47]} 8. Bb2 {[%emt 0:00:51]} Nxe5 {[%emt 0:00:47]} 9. Nxe5 {[%emt 0:00:21]} Bxe5 {[%emt 0:17:14]} 10. Bxe5 {[%emt 0:09:34]} dxe5 {[%emt 0:01:08]} 11. Nc3 {[%emt 0:01:03]} Nd7 {[%emt 0:06:36]} 12. Qd5 {[%emt 0:17:48]} Qe7 {[%emt 0:04:57]} 13. Ne4 {[%emt 0:06:40]} Kg7 {[%emt 0:06:16]} 14. c4 {[%emt 0:09:56]} f5 {[%emt 0:01:21]} 15. Nc3 {[%emt 0:01:35]} Nf6 {[%emt 0:11:33]} 16. Qa5 {[%emt 0:01:10]} c6 {[%emt 0:02:54]} 17. Rad1 {[%emt 0:04:30]} e4 {[%emt 0:08:34]} 18. Rd4 {[%emt 0:08:58]} Re8 {[%emt 0:07:05]} 19. Rfd1 {[%emt 0:02:26]} Be6 {[%emt 0:02:58]} 20. Rd6 {[%emt 0:05:00]} 1/2-1/2

[Event "Austrian Championship 2022"]
[Site "Vienna"]
[Date "2022.08.16"]
[Round "6.24"]
[White "Ivanyk, Igor"]
[Black "Albadri Abd Al Sattar"]
[Result "0-1"]
[ECO "C10"]
[WhiteElo "2002"]
[BlackElo "2161"]
[Annotator "NA RC"]
[PlyCount "68"]
[EventDate "2022.08.12"]
[EventType "swiss"]
[EventCountry "AUT"]
[SourceTitle "playchess.com"]
[Source "ChessBase"]
[SourceQuality "1"]
[TimeControl "40/5400+30:1800+30"]

1. e4 {[%emt 0:03:04]} e6 {[%emt 0:02:13]} 2. d4 {[%emt 0:00:13]} d5 {[%emt 0:00:13]} 3. Nc3 {[%emt 0:00:34]} dxe4 {[%emt 0:00:18]} 4. Nxe4 {[%emt 0:00:07]} Nd7 {[%emt 0:00:07]} 5. Nf3 {[%emt 0:00:14]} Ngf6 {[%emt 0:00:09]} 6. Bd3 {[%emt 0:01:59]} Nxe4 {[%emt 0:02:30]} 7. Bxe4 {[%emt 0:00:44]} Nf6 {[%emt 0:00:02]} 8. Bg5 {[%emt 0:03:36]} Be7 {[%emt 0:01:36]} 9. Bxf6 {[%emt 0:00:46]} Bxf6 {[%emt 0:00:02]} 10. Qd3 {[%emt 0:00:28]} h6 {[%emt 0:01:45]} 11. O-O-O {[%emt 0:03:44]} O-O {[%emt 0:01:03]} 12. h4 {[%emt 0:03:44]} Qd6 {[%emt 0:00:28]} 13. g3 {[%emt 0:14:10]} Bd7 {[%emt 0:01:55]} 14. Kb1 {[%emt 0:09:28]} Bc6 {[%emt 0:03:15]} 15. Ng5 {[%emt 0:12:27]} Rfd8 {[%emt 0:12:07]} 16. Nf3 {[%emt 0:19:16]} Bxe4 {[%emt 0:02:52]} 17. Qxe4 {[%emt 0:00:15]} c5 {[%emt 0:00:35]} 18. c3 {[%emt 0:01:38]} b5 {[%emt 0:02:16]} 19. Rhe1 {[%emt 0:04:40]} c4 {[%emt 0:07:19]} 20. Ne5 {[%emt 0:03:13]} Rac8 {[%emt 0:01:35]} 21. f4 {[%emt 0:03:17]} b4 {[%emt 0:00:23]} 22. Qb7 {[%emt 0:01:42]} Be7 {[%emt 0:08:56]} 23. Qf3 {[%emt 0:03:25]} Qb6 {[%emt 0:03:07]} 24. Ka1 {[%emt 0:01:41]} Qb5 {[%emt 0:08:13]} 25. Qe2 {[%emt 0:02:00]} Rc7 {[%emt 0:05:37]} 26. f5 {[%emt 0:02:58]} exf5 {[%emt 0:05:19]} 27. Qh5 {[%emt 0:01:53]} Bf6 {[%emt 0:03:36]} 28. Qxf5 {[%emt 0:01:14]} Re7 {[%emt 0:05:26]} 29. cxb4 {[%emt 0:01:22]} Qxb4 {[%emt 0:01:07]} 30. Qc2 {[%emt 0:01:01]} Rxd4 {[%emt 0:02:45]} 31. Nf3 {[%emt 0:00:15]} Rxd1+ {[%emt 0:01:43]} 32. Rxd1 {[%emt 0:00:10]} Re3 {[%emt 0:00:43]} 33. Nd2 {[%emt 0:00:57]} Re2 {[%emt 0:01:56]} 34. Qc1 {[%emt 0:00:41]} c3 {[%emt 0:00:38]} 0-1

[Event "Austrian Championship 2022"]
[Site "Vienna"]
[Date "2022.08.17"]
[Round "7.1"]
[White "Diermair, Andreas"]
[Black "Menezes, Christoph"]
[Result "1/2-1/2"]
[ECO "E05"]
[WhiteElo "2452"]
[BlackElo "2417"]
[Annotator "TA"]
[PlyCount "39"]
[EventDate "2022.08.12"]
[EventType "swiss"]
[EventCountry "AUT"]
[SourceTitle "playchess.com"]
[Source "ChessBase"]
[SourceQuality "1"]
[TimeControl "40/5400+30:1800+30"]

{[%evp 23,39,15,23,10,11,6,16,14,16,14,20,22,11,14,15,20,9,12]} 1. d4 {[%emt 0:00:04] Ribli,Z} Nf6 {[%emt 0:00:37]} 2. c4 {[%emt 0:00:10]} e6 {[%emt 0:00:14]} 3. Nf3 {[%emt 0:00:32]} d5 {[%emt 0:00:21]} 4. g3 {[%emt 0:00:10]} Be7 {[%emt 0:00:38]} 5. Bg2 {[%emt 0:00:20]} O-O {[%emt 0:00:18]} 6. O-O {[%emt 0:00:17]} dxc4 {[%emt 0:00:35]} 7. Qc2 {[%emt 0:00:30]} a6 {[%emt 0:00:33]} 8. a4 {[%emt 0:00:26]} Bd7 {[%emt 0:00:32][%cal Bc8d7,Bd7c6,Bc6d5][%mdl 32]} 9. Qxc4 {[%emt 0:01:19]} Bc6 {[%emt 0:00:29]} 10. Bg5 {[%emt 0:00:34]} Bd5 {[%emt 0:01:50]} 11. Qc2 {[%emt 0:00:43]} Be4 {[%emt 0:00:35]} 12. Qc1 {[%emt 0:00:33]} Nc6 {[%emt 0:00:41]} 13. e3 {[%emt 0:07:59] E05: Open Catalan: 5 Nf3 Be7.} Nb4 {[%emt 0:16:56][%cal Oc7c5] The position is equal.} 14. Nc3 {[%emt 0:01:34] [#] Strongly threatening Bxf6.} Bc6 {[%emt 0:04:10]} 15. a5 {[%emt 0:03:51]} Rc8 {[%emt 0:12:34]} 16. Rd1 {[%emt 0:01:42] [#]} Qe8 $146 {[%emt 0:10:16]} ({Predecessor:} 16... Bxf3 17. Bxf3 Nfd5 18. Bxe7 Qxe7 19. Na4 b6 20. Qd2 Rb8 21. Rdc1 Rfd8 22. Nc3 Nf6 {½-½ (37) Pigusov,E (2560)-Liang,J (2425) Beijing 1997 CBM 061 [Ribli,Z]}) 17. Qb1 {[%emt 0:07:54]} h6 {[%emt 0:06:44]} 18. Bxf6 {[%emt 0:00:11]} Bxf6 {[%emt 0:00:06]} 19. Ne4 {[%emt 0:01:21]} Be7 {[%emt 0:00:51]} 20. Rc1 {[%emt 0:13:42] An interesting draw.  Weighted Error Value: White=0.02 (flawless) /Black=0.01 (flawless)} 1/2-1/2

[Event "Austrian Championship 2022"]
[Site "Vienna"]
[Date "2022.08.17"]
[Round "7.1"]
[White "Hechl, Gerald"]
[Black "Spiesberger, Gerhard"]
[Result "0-1"]
[ECO "A41"]
[WhiteElo "2222"]
[BlackElo "1972"]
[Annotator "NA RC"]
[PlyCount "110"]
[EventDate "2022.08.12"]
[EventType "swiss"]
[EventCountry "AUT"]
[SourceTitle "playchess.com"]
[Source "ChessBase"]
[SourceQuality "1"]
[TimeControl "40/5400+30:1800+30"]

1. Nf3 {[%emt 0:00:03]} d6 {[%emt 0:00:32]} 2. d4 {[%emt 0:00:05]} Nc6 {[%emt 0:00:08]} 3. d5 {[%emt 0:01:07]} Ne5 {[%emt 0:00:09]} 4. Nxe5 {[%emt 0:00:05]} dxe5 {[%emt 0:00:05]} 5. e4 {[%emt 0:00:05]} Nf6 {[%emt 0:01:02]} 6. Bb5+ {[%emt 0:00:40]} Bd7 {[%emt 0:02:05]} 7. Qe2 {[%emt 0:00:06]} a6 {[%emt 0:00:13]} 8. Bc4 {[%emt 0:00:41]} g6 {[%emt 0:04:46]} 9. a4 {[%emt 0:21:47]} Bg7 {[%emt 0:03:25]} 10. O-O {[%emt 0:00:03]} O-O {[%emt 0:02:01]} 11. Nc3 {[%emt 0:10:06]} c6 {[%emt 0:09:30]} 12. Rd1 {[%emt 0:10:53]} Qc7 {[%emt 0:02:34]} 13. a5 {[%emt 0:02:59]} Rac8 {[%emt 0:01:33]} 14. Be3 {[%emt 0:04:42]} cxd5 {[%emt 0:09:00]} 15. Bxd5 {[%emt 0:00:05]} Bc6 {[%emt 0:06:51]} 16. Bb6 {[%emt 0:00:05]} Qb8 {[%emt 0:00:16]} 17. Bb3 {[%emt 0:00:07]} Nd7 {[%emt 0:03:06]} 18. Be3 {[%emt 0:00:51]} Nf6 {[%emt 0:00:33]} 19. f3 {[%emt 0:06:19]} Rcd8 {[%emt 0:01:34]} 20. Bc5 {[%emt 0:01:40]} Rfe8 {[%emt 0:04:52]} 21. Qf2 {[%emt 0:04:24]} e6 {[%emt 0:01:30]} 22. Bb6 {[%emt 0:04:56]} Rxd1+ {[%emt 0:05:40]} 23. Nxd1 {[%emt 0:00:32]} Nd7 {[%emt 0:01:30]} 24. Ba7 {[%emt 0:00:03]} Qc7 {[%emt 0:03:31]} 25. Qe3 {[%emt 0:01:44]} Ra8 {[%emt 0:01:07]} 26. Bc5 {[%emt 0:01:37]} Nxc5 {[%emt 0:05:36]} 27. Qxc5 {[%emt 0:00:02]} Bf8 {[%emt 0:01:09]} 28. Qc3 {[%emt 0:00:04]} Rc8 {[%emt 0:00:43]} 29. Ne3 {[%emt 0:06:01]} h5 {[%emt 0:04:16]} 30. Kh1 {[%emt 0:08:28]} Bb5 {[%emt 0:02:09]} 31. Qe1 {[%emt 0:00:53]} Bc5 {[%emt 0:02:04]} 32. c4 {[%emt 0:03:51]} Bc6 {[%emt 0:08:42]} 33. Nc2 {[%emt 0:00:04]} Rd8 {[%emt 0:00:57]} 34. Ba2 {[%emt 0:02:07]} Bd4 {[%emt 0:01:38]} 35. Rb1 {[%emt 0:00:23]} Qd7 {[%emt 0:01:09]} 36. b4 {[%emt 0:00:25]} Ba4 {[%emt 0:01:07]} 37. Na3 {[%emt 0:09:00]} Ba7 {[%emt 0:01:30]} 38. c5 {[%emt 0:00:40]} Qd3 {[%emt 0:01:32]} 39. Qc1 {[%emt 0:01:34]} Qe2 {[%emt 0:00:36]} 40. Bc4 {[%emt 0:00:27]} Qf2 {[%emt 0:04:07]} 41. Qf1 {[%emt 0:01:19]} Qe3 {[%emt 0:01:33]} 42. Ra1 {[%emt 0:02:40]} Rd2 {[%emt 0:04:10]} 43. Bxa6 {[%emt 0:00:17]} Rf2 {[%emt 0:04:57]} 44. Qd3 {[%emt 0:00:22]} Qg5 {[%emt 0:00:30]} 45. Rg1 {[%emt 0:01:19]} bxa6 {[%emt 0:03:43]} 46. Qxa6 {[%emt 0:00:43]} h4 {[%emt 0:02:26]} 47. h3 {[%emt 0:10:48]} Bd1 {[%emt 0:08:58]} 48. Qd3 {[%emt 0:00:06]} Be2 {[%emt 0:00:29]} 49. f4 {[%emt 0:03:15]} exf4 {[%emt 0:03:46]} 50. Qd4 {[%emt 0:03:41]} Qg3 {[%emt 0:02:07]} 51. Qd8+ {[%emt 0:00:10]} Kg7 {[%emt 0:00:13]} 52. Qd4+ {[%emt 0:00:04]} f6 {[%emt 0:01:22]} 53. e5 {[%emt 0:01:56]} Bf3 {[%emt 0:00:37]} 54. exf6+ {[%emt 0:00:27]} Kh6 {[%emt 0:01:12]} 55. Qxf2 {[%emt 0:00:43]} Qxh3# {[%emt 0:00:13]} 0-1